bitfinex-derivatives/quotes_SOLF0:USTF0_20250130
["timestamp","ask_amount","ask_price","bid_price","bid_amount"]
[1738267480512,4.1581,240.48,240.43,4.1589]
[1738267481509,4.1583,240.47,240.43,4.18726627]
[1738267482116,0.03054411,240.48,240.43,4.18726627]
[1738267482613,0.03054411,240.48,240.43,7.18458474]
[1738267482809,0.03054411,240.48,240.46,4.1584]
[1738267483215,0.03054411,240.48,240.45,4.1585]
[1738267485719,0.03054411,240.48,240.45,7.15621847]
[1738267485919,0.03054411,240.48,240.47,7.15621847]
[1738267487118,82.28,240.53,240.47,7.15621847]
[1738267487523,7.15621847,240.57,240.49,7.15621847]
[1738267487720,4.1571,240.54,240.49,11.31391847]
[1738267487921,7.15621847,240.55,240.49,4.1577]
[1738267488424,0.02769003,240.54,240.5,0.03091565]
[1738267488922,7.15621847,240.53,240.5,0.03091565]
[1738267489921,4.1575,240.51,240.5,0.03091565]
[1738267495131,4.1573,240.53,240.5,0.03091565]
[1738267496834,0.02769003,240.54,240.53,4.1572]
[1738267497833,0.02769003,240.54,240.52,4.1573]
[1738267498530,0.02769003,240.54,240.51,10.01811847]
[1738267498731,0.02769003,240.54,240.51,2.8619]
[1738267499435,0.02769003,240.54,240.51,7.0194]
[1738267499934,0.02769003,240.54,240.51,2.8619]
[1738267500329,0.02769003,240.54,240.53,11.31341847]
[1738267500533,7.15621847,240.61,240.53,7.15621847]
[1738267501027,4.1562,240.59,240.53,11.31321847]
[1738267501231,7.15621847,240.61,240.53,4.157]
[1738267501429,7.15621847,240.57,240.51,2.8619]
[1738267501635,4.1568,240.56,240.51,2.8619]
[1738267501832,4.1568,240.56,240.52,0.02647975]
[1738267501833,0.03051084,240.56,240.52,0.02647975]
[1738267502335,4.1572,240.53,240.52,0.02647975]
[1738267502935,0.03051084,240.56,240.52,0.02647975]
[1738267503136,4.157,240.54,240.52,0.02647975]
[1738267504038,11.31341847,240.53,240.52,0.02647975]
[1738267504534,4.1585,240.46,240.41,10.7502]
[1738267504831,7.15621847,240.47,240.39,18.98238913]
[1738267505539,7.15621847,240.45,240.39,9.08617066]
[1738267505741,7.18622888,240.45,240.41,0.03001461]
[1738267505935,7.15621847,240.43,240.41,0.03001461]
[1738267506136,4.1591,240.42,240.41,0.03001461]
[1738267507837,4.1603,240.35,240.31,2.8267]
[1738267508438,7.15621847,240.36,240.31,6.9877]
[1738267508634,11.33639995,240.37,240.31,6.9877]
[1738267508833,7.17629995,240.37,240.31,2.8267]
[1738267509039,0.02734081,240.36,240.32,0.02864268]
[1738267510435,0.02734081,240.36,240.33,4.1606]
[1738267511142,0.02734081,240.36,240.34,4.1604]
[1738267511439,0.02734081,240.36,240.32,0.02864268]
[1738267512039,0.02734081,240.36,240.34,4.1604]
[1738267519653,0.02734081,240.36,240.32,0.02864268]
[1738267519654,4.1605,240.34,240.32,0.02864268]
[1738267520456,0.02734081,240.36,240.32,0.02864268]
[1738267521849,0.02734081,240.36,240.33,4.1605]
[1738267525151,0.02734081,240.36,240.35,4.1603]
[1738267525551,11.04172118,240.45,240.32,0.02864268]
[1738267525854,4.159,240.43,240.39,4.1596]
[1738267526155,3.3855,240.49,240.33,11.04172118]
[1738267526351,3.3855,240.49,240.36,11.04172118]
[1738267526547,4.1586,240.45,240.36,11.04172118]
[1738267526749,0.0301301,240.45,240.4,0.02630396]
[1738267527255,4.1589,240.44,240.4,0.02630396]
[1738267528160,4.1592,240.42,240.4,0.02630396]
[1738267528651,0.0301301,240.45,240.4,0.02630396]
[1738267528851,4.1593,240.41,240.4,0.02630396]
[1738267529559,15.20102118,240.41,240.4,0.02630396]
[1738267530559,15.20181249,240.41,240.4,0.02630396]
[1738267531858,11.3351472,240.41,240.4,0.02630396]
[1738267533459,4.1606,240.34,240.28,3.6465]
[1738267533655,4.1606,240.34,240.27,7.1758472]
[1738267533857,4.1606,240.34,240.29,4.1612]
[1738267534057,4.1606,240.34,240.27,7.1758472]
[1738267534359,4.1606,240.34,240.29,4.1613]
[1738267534558,4.19153424,240.33,240.29,4.1613]
[1738267534765,4.19153424,240.33,240.28,0.02769454]
[1738267535060,0.03083424,240.33,240.29,4.1613]
[1738267535360,0.03083424,240.33,240.28,0.02769454]
[1738267535361,7.1758472,240.31,240.28,0.02769454]
[1738267535555,7.1758472,240.29,240.28,0.02769454]
[1738267536353,11.3371472,240.29,240.28,0.02769454]
[1738267566975,4.1613,240.29,240.28,0.02769454]
[1738267570975,7.20668144,240.33,240.28,0.02769454]
[1738267571182,0.03083424,240.33,240.28,7.20354174]
[1738267572177,7.1758472,240.37,240.32,4.1608]
[1738267572376,7.1758472,240.4,240.32,7.1758472]
[1738267572877,4.1598,240.38,240.32,7.1758472]
[1738267573470,0.03030133,240.37,240.33,0.02632858]
[1738267573672,4.19030133,240.37,240.34,4.1604]
[1738267573874,4.19030133,240.37,240.33,0.02632858]
[1738267574379,4.1603,240.35,240.33,0.02632858]
[1738267576780,7.1758472,240.36,240.33,0.02632858]
[1738267576980,4.1605,240.34,240.33,0.02632858]
[1738267577277,11.3363472,240.34,240.33,0.02632858]
[1738267578476,11.3363472,240.34,240.27,4.1617]
[1738267578477,7.1758472,240.34,240.27,4.1617]
[1738267578681,11.3370472,240.3,240.26,4.1618]
[1738267579582,7.1758472,240.3,240.27,4.1617]
[1738267579879,7.20676655,240.3,240.27,4.1617]
[1738267580583,4.1617,240.27,240.26,0.02896076]
[1738267583582,4.1626,240.22,240.18,4.1632]
[1738267583777,7.1758472,240.2,240.14,22.85290186]
[1738267584082,4.1631,240.19,240.15,4.1636]
[1738267584780,4.19123982,240.19,240.15,4.19084783]
[1738267585780,7.1758472,240.18,240.15,4.19084783]
[1738267586182,7.20398702,240.19,240.15,4.19084783]
[1738267586793,7.20398702,240.19,240.15,0.02724783]
[1738267587081,4.1633,240.18,240.15,0.02724783]
[1738267587482,7.20398702,240.19,240.15,0.02724783]
[1738267587483,11.36708702,240.19,240.15,0.02724783]
[1738267587782,0.02813982,240.19,240.15,0.02724783]
[1738267588182,0.02813982,240.19,240.16,7.1758472]
[1738267589083,0.02813982,240.19,240.18,4.1632]
[1738267590679,0.02813982,240.19,240.18,11.3390472]
[1738267590881,7.1758472,240.3,240.22,7.1758472]
[1738267591882,4.1617,240.27,240.24,0.02892179]
[1738267592087,7.20559446,240.28,240.24,0.02892179]
[1738267593391,4.162,240.25,240.24,0.02892179]
[1738267603900,7.1758472,240.26,240.17,4.1634]
[1738267604199,7.1758472,240.21,240.13,3.62967677]
[1738267604396,7.1758472,240.21,240.16,4.1636]
[1738267604799,7.1758472,240.19,240.16,4.1636]
[1738267605000,11.3390472,240.19,240.15,0.02623361]
[1738267605302,0.03129584,240.2,240.15,4.18993361]
[1738267605503,4.1634,240.17,240.15,0.02623361]
[1738267605905,7.1758472,240.16,240.15,0.02623361]
[1738267606306,11.3394472,240.16,240.15,0.02623361]
[1738267606508,7.1758472,240.16,240.09,19.89577819]
[1738267606808,7.1758472,240.14,240.09,9.16617266]
[1738267607010,4.1643,240.12,240.09,9.16617266]
[1738267607308,7.1758472,240.14,240.09,13.33097266]
[1738267607504,11.3398472,240.14,240.09,13.33097266]
[1738267607706,11.37020421,240.14,240.09,4.1648]
[1738267608106,11.37020421,240.14,240.1,4.1646]
[1738267608706,4.1641,240.13,240.08,176.06703971]
[1738267608911,4.1641,240.13,240.08,171.90223971]
[1738267609307,4.1641,240.13,240.06,7.1758472]
[1738267610212,4.1641,240.13,240.09,4.1647]
[1738267616613,4.1641,240.13,240.1,4.1646]
[1738267619916,4.1643,240.12,240.09,4.1648]
[1738267620116,4.1643,240.12,240.08,7.1758472]
[1738267620316,7.1758472,240.11,240.04,16.3910472]
[1738267620616,7.1758472,240.13,240.06,7.1758472]
[1738267621219,4.1651,240.08,240.04,7.0609]
[1738267621716,4.19530347,240.08,240.04,7.0609]
[1738267623214,4.1652,240.07,240.03,4.1658]
[1738267623418,0.03020347,240.08,240.03,4.1658]
[1738267624114,4.19520347,240.08,240.04,4.1656]
[1738267625916,7.1758472,240.07,240.04,4.1656]
[1738267627216,7.1758472,240.07,239.97,2.72]
[1738267627217,7.1758472,240.05,239.96,27.06478909]
[1738267627415,7.1758472,240.03,239.96,7.1758472]
[1738267627610,4.1662,240.02,239.95,9.1576341]
[1738267627918,7.2031078,240.03,239.97,4.1667]
[1738267628719,4.1662,240.01,239.97,4.1667]
[1738267628921,11.3420472,240.01,239.97,4.1667]
[1738267629722,7.1758472,240.01,239.98,4.1667]
[1738267632321,11.3420472,240.01,239.96,4.1669]
[1738267632513,11.3420472,240.01,239.94,7.1758472]
[1738267632719,7.1758472,239.99,239.91,9.16282473]
[1738267632920,4.167,239.97,239.93,4.1675]
[1738267633119,4.19512522,239.97,239.93,4.1675]
[1738267633721,4.1673,239.95,239.91,4.1678]
[1738267633923,7.20397242,239.97,239.91,4.1678]
[1738267634422,0.02812522,239.97,239.94,4.1673]
[1738267635724,0.02812522,239.97,239.9,7.1758472]
[1738267635919,7.20397242,239.97,239.9,7.1758472]
[1738267636225,11.37097242,239.97,239.93,4.1676]
[1738267637825,7.1758472,239.95,239.89,2.8295]
[1738267638026,7.1758472,239.93,239.86,13.5147472]
[1738267638226,4.1683,239.89,239.83,49.40138134]
[1738267639026,4.1681,239.9,239.85,4.1688]
[1738267639425,0.02650371,239.92,239.85,7.1758472]
[1738267639625,0.02650371,239.92,239.88,4.1684]
[1738267641029,0.02650371,239.92,239.87,7.1758472]
[1738267641424,0.02650371,239.92,239.9,4.168]
[1738267642124,0.02650371,239.92,239.89,4.1683]
[1738267642639,0.02650371,239.92,239.85,7.1758472]
[1738267642926,11.3437472,239.91,239.87,4.1686]
[1738267643931,0.02650371,239.92,239.85,7.1758472]
[1738267644135,4.19430371,239.92,239.88,4.1684]
[1738267645627,11.3438472,239.91,239.87,4.1686]
[1738267648029,7.1758472,239.91,239.83,49.40138134]
[1738267648234,4.1682,239.9,239.83,49.40138134]
[1738267648734,4.1682,239.9,239.86,4.1688]
[1738267652835,4.1682,239.9,239.87,4.1686]
[1738267654838,7.1758472,239.91,239.83,9.9399472]
[1738267654839,7.1758472,239.91,239.85,4.1689]
[1738267655138,4.19440371,239.92,239.85,7.1758472]
[1738267656139,4.19440371,239.92,239.88,4.1683]
[1738267659340,0.02650371,239.92,239.85,7.1758472]
[1738267659637,0.02650371,239.92,239.91,7.1758472]
[1738267660042,0.02650371,239.92,239.91,4.1679]
[1738267660945,0.02650371,239.92,239.85,7.1758472]
[1738267661342,0.02650371,239.92,239.83,9.9399472]
[1738267661939,4.168,239.91,239.87,4.1686]
[1738267663644,4.1681,239.9,239.87,4.1686]
[1738267663843,7.1758472,239.91,239.87,4.1686]
[1738267665149,11.3437472,239.91,239.87,4.1686]
[1738267666451,0.02650371,239.92,239.83,9.9399472]
[1738267666650,0.02650371,239.92,239.89,4.1682]
[1738267666846,0.02650371,239.92,239.87,7.1758472]
[1738267667050,0.02650371,239.92,239.89,7.1758472]
[1738267667250,0.02650371,239.92,239.91,4.1679]
[1738267668958,4.1665,240.0,239.96,4.1671]
[1738267669153,7.1758472,240.03,239.91,7.1758472]
[1738267669456,7.1758472,240.03,239.96,4.1669]
[1738267669457,4.1662,240.02,239.96,4.1669]
[1738267669650,7.1758472,240.03,239.91,7.1758472]
[1738267670056,0.02893857,239.99,239.95,0.02899033]
[1738267670758,0.02893857,239.99,239.96,4.1669]
[1738267672756,0.02893857,239.99,239.95,0.02899033]
[1738267673059,7.1758472,239.97,239.95,0.02899033]
[1738267673458,11.3427472,239.97,239.95,0.02899033]
[1738267673660,4.1669,239.97,239.95,0.02899033]
[1738267675766,0.02893857,239.99,239.95,0.02899033]
[1738267676262,0.02893857,239.99,239.95,2.80329033]
[1738267676464,0.02893857,239.99,239.97,4.1669]
[1738267676964,0.02893857,239.99,239.95,2.80329033]
[1738267677166,0.02893857,239.99,239.98,4.1667]
[1738267677867,7.1758472,240.07,239.98,7.1758472]
[1738267678060,7.1758472,240.07,239.95,2.80329033]
[1738267678061,7.1758472,240.09,240.0,7.1758472]
[1738267678365,4.1651,240.08,240.0,7.1758472]
[1738267678660,4.1651,240.08,240.03,4.1657]
[1738267679066,4.1651,240.08,240.0,7.1758472]
[1738267679267,4.19369102,240.08,240.03,4.19718604]
[1738267679766,4.1652,240.07,240.03,4.19718604]
[1738267680467,4.1652,240.07,240.03,0.03148604]
[1738267681269,7.1758472,240.07,240.03,0.03148604]
[1738267681563,7.1758472,240.05,240.03,0.03148604]
[1738267681967,4.1657,240.04,240.03,0.03148604]
[1738267687169,7.1758472,240.05,240.03,0.03148604]
[1738267689177,4.1657,240.04,240.03,0.03148604]
[1738267691073,7.1758472,240.05,239.84,171.90223971]
[1738267691278,11.3432472,239.95,239.9,9.17545181]
[1738267691478,11.3432472,239.95,239.9,4.1679]
[1738267691873,4.1677,239.93,239.88,2.6859]
[1738267692179,7.1758472,239.93,239.88,2.6859]
[1738267692477,7.20380444,239.93,239.89,143.28139922]
[1738267692672,4.168,239.91,239.89,143.28139922]
[1738267693372,7.20380444,239.93,239.89,143.28139922]
[1738267694179,11.37150444,239.93,239.89,143.28139922]
[1738267694381,11.37150444,239.93,239.89,0.0295328]
[1738267696181,4.1681,239.9,239.89,0.0295328]
[1738267696380,7.1758472,239.91,239.89,0.0295328]
[1738267697582,11.3439472,239.91,239.89,0.0295328]
[1738267700377,0.02795724,239.93,239.89,0.0295328]
[1738267700682,0.02795724,239.93,239.91,7.1758472]
[1738267701177,0.02795724,239.93,239.92,4.1677]
[1738267701480,4.1663,240.01,239.91,7.1758472]
[1738267701678,4.1663,240.01,239.95,7.1758472]
[1738267702182,4.1663,240.01,239.96,4.167]
[1738267702583,4.19681812,240.01,239.96,4.19458685]
[1738267702781,0.03051812,240.01,239.96,4.19458685]
[1738267702984,4.1664,240.0,239.96,4.19458685]
[1738267703685,4.1667,239.99,239.96,0.02758685]
[1738267703983,7.1758472,239.98,239.96,0.02758685]
[1738267704483,4.1669,239.97,239.96,0.02758685]
[1738267706584,7.1758472,240.0,239.96,0.02758685]
[1738267706790,0.03051812,240.01,239.96,7.20343405]
[1738267706985,0.03051812,240.01,239.96,0.02758685]
[1738267707185,4.19681812,240.01,239.97,4.1668]
[1738267707487,7.20636532,240.01,239.97,4.1668]
[1738267707884,7.20636532,240.01,239.96,0.02758685]
[1738267709189,4.1667,239.99,239.96,0.02758685]
[1738267709389,0.03051812,240.01,239.96,0.02758685]
[1738267709789,4.19671812,240.01,239.96,0.02758685]
[1738267710396,4.1664,240.0,239.97,4.1668]
[1738267713395,4.1664,240.0,239.96,0.02758685]
[1738267713695,4.1664,240.0,239.96,4.19458685]
[1738267718592,7.20636532,240.01,239.96,4.19458685]
[1738267718799,4.1665,239.99,239.96,4.19458685]
[1738267723001,4.1665,240.0,239.96,4.19458685]
[1738267723302,0.03051812,240.01,239.98,4.1665]
[1738267723497,0.03051812,240.01,239.96,7.20343405]
[1738267723702,4.19681812,240.01,239.96,7.20343405]
[1738267724297,4.1664,240.0,239.97,4.1668]
[1738267726498,0.03051812,240.01,239.96,0.02758685]
[1738267726703,0.03051812,240.01,239.99,4.1665]
[1738267727004,0.03051812,240.01,239.96,7.20343405]
[1738267728303,3.3975,240.13,239.96,7.20343405]
[1738267728304,7.1758472,240.07,239.98,7.1758472]
[1738267728897,11.3410472,240.07,240.03,4.1657]
[1738267729503,11.37103453,240.07,240.03,4.19401818]
[1738267730907,7.20583453,240.07,240.03,0.02831818]
[1738267731106,4.1654,240.06,240.03,0.02831818]
[1738267733512,0.02998733,240.07,240.05,7.1758472]
[1738267733705,7.1758472,240.17,240.05,7.1758472]
[1738267734008,7.1758472,240.19,240.11,7.1758472]
[1738267734209,7.1758472,240.19,240.14,4.1638]
[1738267734708,7.1758472,240.19,240.14,4.1906079]
[1738267734905,7.20573925,240.19,240.14,4.1906079]
[1738267735504,11.36883925,240.19,240.14,4.1906079]
[1738267735708,7.1758472,240.17,240.14,0.0268079]
[1738267737407,0.02989205,240.19,240.14,0.0268079]
[1738267737408,7.1758472,240.15,240.14,0.0268079]
[1738267737910,11.3396472,240.15,240.14,0.0268079]
[1738267742013,4.1638,240.15,240.14,0.0268079]
[1738267744721,4.1633,240.18,240.14,4.1907079]
[1738267746723,4.1633,240.18,240.15,4.1637]
[1738267747321,0.02989205,240.19,240.18,4.1632]
[1738267748721,0.02989205,240.19,240.14,0.0268079]
[1738267748923,0.02989205,240.19,240.17,4.1634]
[1738267750126,0.02989205,240.19,240.18,4.1632]
[1738267750826,7.1758472,240.25,240.21,4.1627]
[1738267751719,3.3896,240.31,240.21,4.1627]
[1738267751720,7.18285665,240.26,240.21,4.1627]
[1738267751925,4.1622,240.24,240.21,4.1627]
[1738267752125,4.1622,240.24,240.21,4.19421896]
[1738267752626,4.1622,240.24,240.21,0.03151896]
[1738267752826,0.02724715,240.25,240.21,0.03151896]
[1738267752827,11.34535665,240.22,240.21,0.03151896]
[1738267753422,7.18285665,240.22,240.13,4.164]
[1738267753629,4.1634,240.17,240.13,4.164]
[1738267753824,11.34625665,240.17,240.13,4.164]
[1738267754024,7.18285665,240.17,240.09,51.15800971]
[1738267754325,4.1637,240.16,240.12,4.1643]
[1738267754522,8.3231,240.28,240.06,10.01445665]
[1738267754723,7.18285665,240.11,240.06,2.8316]
[1738267755124,11.37646971,240.11,240.07,4.1651]
[1738267755326,4.19361306,240.11,240.07,4.1651]
[1738267756029,0.02911306,240.11,240.07,4.1651]
[1738267756930,0.02911306,240.11,240.06,10.04259521]
[1738267757126,0.02911306,240.11,240.08,4.165]
[1738267758728,4.1632,240.19,240.1,7.18285665]
[1738267759029,4.1632,240.19,240.06,2.85973856]
[1738267759030,7.18285665,240.22,240.15,7.18285665]
[1738267759233,4.1629,240.21,240.17,4.1634]
[1738267759925,4.19404644,240.21,240.17,0.0317925]
[1738267760122,0.03114644,240.21,240.17,0.0317925]
[1738267760324,4.1629,240.2,240.17,0.0317925]
[1738267761727,0.03114644,240.21,240.17,0.0317925]
[1738267761934,0.03114644,240.21,240.2,4.1629]
[1738267763034,0.03114644,240.21,240.17,0.0317925]
[1738267763333,0.03114644,240.21,240.19,4.1631]
[1738267763538,0.03114644,240.21,240.17,0.0317925]
[1738267764736,0.03114644,240.21,240.17,4.1951925]
[1738267765538,0.03114644,240.21,240.18,4.1632]
[1738267766334,0.03114644,240.21,240.17,0.0317925]
[1738267766632,4.19394644,240.21,240.17,0.0317925]
[1738267768136,4.19394644,240.21,240.17,4.1951925]
[1738267769240,4.19394644,240.21,240.17,0.0317925]
[1738267769241,4.163,240.2,240.17,0.0317925]
[1738267770242,4.1632,240.19,240.17,0.0317925]
[1738267771235,4.19404644,240.21,240.17,0.0317925]
[1738267771436,0.03114644,240.21,240.17,0.0317925]
[1738267773143,4.19394644,240.21,240.17,4.1951925]
[1738267774044,0.03114644,240.21,240.17,0.0317925]
[1738267774744,4.1632,240.18,240.17,0.0317925]
[1738267776145,4.1643,240.12,240.08,4.1648]
[1738267776437,11.22753786,240.19,240.06,2.8316]
[1738267777445,4.164,240.14,240.1,0.03161938]
[1738267778945,0.03077042,240.15,240.1,0.03161938]
[1738267779142,4.19457042,240.15,240.1,4.19621938]
[1738267782047,4.19457042,240.15,240.11,4.1644]
[1738267782546,0.03077042,240.15,240.1,0.03161938]
[1738267782748,0.03077042,240.15,240.12,4.1642]
[1738267784151,0.03077042,240.15,240.1,7.21942518]
[1738267784452,0.03077042,240.15,240.13,4.164]
[1738267786450,0.03077042,240.15,240.14,4.1639]
[1738267786747,7.1878058,240.27,240.14,7.1878058]
[1738267786945,7.1878058,240.27,240.2,7.1878058]
[1738267787147,4.162,240.25,240.2,11.3507058]
[1738267787542,7.1878058,240.27,240.2,11.3507058]
[1738267787750,4.1623,240.24,240.2,11.3507058]
[1738267788050,4.1623,240.24,240.21,0.02916087]
[1738267788444,0.02728626,240.26,240.22,7.1878058]
[1738267789548,4.18918626,240.26,240.22,11.3503058]
[1738267790052,0.02728626,240.26,240.22,7.1878058]
[1738267790253,4.162,240.25,240.21,0.02916087]
[1738267793055,0.02728626,240.26,240.21,0.02916087]
[1738267793459,7.1878058,240.25,240.21,0.02916087]
[1738267793851,4.1625,240.22,240.21,0.02916087]
[1738267797254,4.1624,240.24,240.21,0.02916087]
[1738267799453,4.1624,240.24,240.21,4.19186087]
[1738267800552,4.18928626,240.26,240.22,7.1878058]
[1738267800760,0.02728626,240.26,240.24,7.1878058]
[1738267801250,0.02728626,240.26,240.22,7.1878058]
[1738267801454,0.02728626,240.26,240.21,0.02916087]
[1738267801655,0.02728626,240.26,240.21,4.19176087]
[1738267801959,0.02728626,240.26,240.21,0.02916087]
[1738267802359,4.18918626,240.26,240.21,4.19186087]
[1738267802858,4.18918626,240.26,240.21,4.19176087]
[1738267803258,0.02728626,240.26,240.21,0.02916087]
[1738267803658,4.1623,240.24,240.21,0.02916087]
[1738267805660,7.1878058,240.25,240.21,0.02916087]
[1738267805852,4.1625,240.22,240.21,0.02916087]
[1738267808960,4.1624,240.24,240.21,0.02916087]
[1738267809161,7.1878058,240.25,240.21,0.02916087]
[1738267809860,4.1624,240.23,240.21,0.02916087]
[1738267810454,7.1878058,240.25,240.21,4.19186087]
[1738267810761,0.02728626,240.26,240.21,0.02916087]
[1738267811259,4.18918626,240.26,240.22,4.1624]
[1738267812059,4.18918626,240.26,240.21,0.02916087]
[1738267812258,4.18918626,240.26,240.23,4.1623]
[1738267812854,0.02728626,240.26,240.23,4.1623]
[1738267813661,0.02728626,240.26,240.21,7.03206087]
[1738267814062,0.02728626,240.26,240.21,2.86946087]
[1738267814464,0.02728626,240.26,240.21,0.02916087]
[1738267814763,7.1878058,240.25,240.21,0.02916087]
[1738267814962,0.02728626,240.26,240.21,0.02916087]
[1738267816367,4.1625,240.22,240.21,0.02916087]
[1738267816557,7.1878058,240.25,240.21,0.02916087]
[1738267817256,4.1622,240.24,240.21,0.02916087]
[1738267818166,7.1878058,240.25,240.21,0.02916087]
[1738267818367,4.1624,240.23,240.21,0.02916087]
[1738267819063,0.02728626,240.26,240.22,4.1625]
[1738267819767,0.02728626,240.26,240.21,4.19186087]
[1738267820066,0.02728626,240.26,240.21,0.02916087]
[1738267821172,4.1622,240.24,240.21,4.19186087]
[1738267821372,0.02728626,240.26,240.21,4.19186087]
[1738267823169,4.1621,240.25,240.21,4.19186087]
[1738267823872,0.02728626,240.26,240.22,7.1878058]
[1738267824569,0.02728626,240.26,240.23,4.1623]
[1738267825873,0.02728626,240.26,240.22,7.1878058]
[1738267826375,0.02728626,240.26,240.25,4.162]
[1738267828879,0.02728626,240.26,240.24,4.1622]
[1738267830274,0.02728626,240.26,240.25,4.162]
[1738267832883,0.02728626,240.26,240.22,12.6508058]
[1738267833084,0.02728626,240.26,240.23,4.1623]
[1738267833878,4.18918626,240.26,240.23,4.1623]
[1738267834077,4.18918626,240.26,240.22,16.8133058]
[1738267834482,4.162,240.25,240.22,16.8133058]
[1738267834682,0.02728626,240.26,240.22,16.8133058]
[1738267836084,4.18918626,240.26,240.22,16.8133058]
[1738267836985,4.18918626,240.26,240.22,14.0795058]
[1738267837187,4.18918626,240.26,240.23,4.1624]
[1738267837387,0.02728626,240.26,240.22,9.9170058]
[1738267837586,4.162,240.25,240.21,0.02916087]
[1738267837785,0.02728626,240.26,240.21,0.02916087]
[1738267837986,0.02728626,240.26,240.22,4.1625]
[1738267838490,4.18928626,240.26,240.22,4.1625]
[1738267839690,4.162,240.25,240.22,4.1625]
[1738267839987,0.02728626,240.26,240.21,0.02916087]
[1738267840192,0.02728626,240.26,240.25,4.162]
[1738267842901,0.02728626,240.26,240.22,7.1878058]
[1738267843097,7.21509206,240.26,240.21,0.02916087]
[1738267844098,4.1624,240.24,240.21,0.02916087]
[1738267845495,4.1625,240.23,240.21,0.02916087]
[1738267846696,11.3503058,240.22,240.21,0.02916087]
[1738267846900,7.21509206,240.26,240.21,0.02916087]
[1738267847302,4.1622,240.24,240.21,0.02916087]
[1738267847504,7.1878058,240.24,240.21,0.02916087]
[1738267848600,4.1624,240.23,240.21,0.02916087]
[1738267849306,4.1625,240.22,240.21,0.02916087]
[1738267850003,7.1878058,240.24,240.21,0.02916087]
[1738267850303,11.3502058,240.24,240.21,0.02916087]
[1738267850499,7.1878058,240.24,240.21,0.02916087]
[1738267850703,11.3500058,240.24,240.21,0.02916087]
[1738267850906,7.1878058,240.24,240.21,0.02916087]
[1738267852614,7.1878058,240.24,240.21,4.19186087]
[1738267855511,4.162,240.25,240.21,4.19186087]
[1738267855909,11.37699206,240.26,240.23,4.1624]
[1738267856213,4.18918626,240.26,240.23,4.1624]
[1738267857517,0.02728626,240.26,240.21,0.02916087]
[1738267857715,4.1621,240.25,240.21,4.19166087]
[1738267858013,4.1621,240.25,240.21,0.02916087]
[1738267858213,7.21509206,240.26,240.21,0.02916087]
[1738267858415,4.1622,240.24,240.22,4.1625]
[1738267859315,4.1622,240.24,240.21,4.19186087]
[1738267861217,4.1621,240.25,240.22,4.1625]
[1738267861515,7.21509206,240.26,240.21,0.02916087]
[1738267862020,11.37709206,240.26,240.23,4.1623]
[1738267862221,7.21509206,240.26,240.21,0.02916087]
[1738267863125,4.1621,240.25,240.22,4.1625]
[1738267864625,7.21509206,240.26,240.21,0.02916087]
[1738267864827,11.37699206,240.26,240.23,4.1623]
[1738267865124,4.18918626,240.26,240.23,4.1623]
[1738267866819,0.02728626,240.26,240.23,4.1623]
[1738267867124,4.162,240.25,240.23,4.1623]
[1738267867726,4.162,240.25,240.22,4.1625]
[1738267868425,0.02728626,240.26,240.21,0.02916087]
[1738267868627,4.1623,240.24,240.21,0.02916087]
[1738267869328,7.21509206,240.26,240.21,0.02916087]
[1738267869527,4.1625,240.22,240.21,0.02916087]
[1738267873530,4.1624,240.23,240.21,0.02916087]
[1738267873926,7.21509206,240.26,240.21,0.02916087]
[1738267874130,4.1622,240.25,240.21,4.19186087]
[1738267874331,0.02728626,240.26,240.22,7.1878058]
[1738267874630,0.02728626,240.26,240.25,4.162]
[1738267883134,0.02728626,240.26,240.24,11.3500058]
[1738267883535,0.02728626,240.26,240.22,9.9142058]
[1738267883735,7.21509206,240.26,240.21,0.02916087]
[1738267883937,7.1878058,240.24,240.21,0.02916087]
[1738267884230,4.1624,240.23,240.21,0.02916087]
[1738267885830,0.02728626,240.26,240.21,0.02916087]
[1738267886539,7.21509206,240.26,240.21,0.02916087]
[1738267886836,7.1878058,240.24,240.21,0.02916087]
[1738267887837,4.1624,240.23,240.21,0.02916087]
[1738267888038,7.21509206,240.26,240.21,0.02916087]
[1738267888539,4.1625,240.22,240.21,0.02916087]
[1738267891342,4.1624,240.24,240.21,0.02916087]
[1738267891543,0.02728626,240.26,240.21,0.02916087]
[1738267892041,4.1625,240.22,240.21,0.02916087]
[1738267903046,0.02728626,240.26,240.21,0.02916087]
[1738267903349,4.1624,240.23,240.21,0.02916087]
[1738267903549,0.02728626,240.26,240.21,0.02916087]
[1738267905149,4.1625,240.23,240.21,0.02916087]
[1738267905445,0.02728626,240.26,240.21,0.02916087]
[1738267905951,4.1625,240.22,240.21,0.02916087]
[1738267912562,0.02728626,240.26,240.21,0.02916087]